[Event "*** Titled Tuesday Blitz"]
[Site "Chess.com"]
[Date "2020.04.14"]
[Round "1"]
[White "davidkalashian"]
[Black "HashtagChess"]
[Result "1-0"]
[WhiteElo "2510"]
[BlackElo "1640"]
[TimeControl "180+1"]
[EndTime "10:06:12 PDT"]
[Termination "davidkalashian won by resignation"]

1. d4 {[%clk 0:02:57.9]} 1... d5 {[%clk 0:02:58.5]} 2. Nf3 {[%clk 0:02:57]} 2...
Nf6 {[%clk 0:02:58]} 3. c4 {[%clk 0:02:55.7]} 3... c6 {[%clk 0:02:57.9]} 4. e3
{[%clk 0:02:53.1]} 4... Bg4 {[%clk 0:02:47.8]} 5. Nc3 {[%clk 0:02:51.3]} 5... e6
{[%clk 0:02:46.9]} 6. Be2 {[%clk 0:02:48.9]} 6... Nbd7 {[%clk 0:02:43]} 7. h3
{[%clk 0:02:47.5]} 7... Bh5 {[%clk 0:02:41.8]} 8. O-O {[%clk 0:02:45.4]} 8...
dxc4 {[%clk 0:02:16]} 9. Bxc4 {[%clk 0:02:42.9]} 9... b5 {[%clk 0:02:14.9]} 10.
Be2 {[%clk 0:02:41.4]} 10... a6 {[%clk 0:02:15.1]} 11. Bd2 {[%clk 0:02:39.8]}
11... Rc8 {[%clk 0:02:14.4]} 12. a4 {[%clk 0:02:36.3]} 12... b4 {[%clk
0:02:12.9]} 13. Na2 {[%clk 0:02:14]} 13... a5 {[%clk 0:02:12.7]} 14. Nc1 {[%clk
0:02:13.6]} 14... c5 {[%clk 0:02:11.1]} 15. dxc5 {[%clk 0:02:12.1]} 15... Nxc5
{[%clk 0:02:04]} 16. Nd4 {[%clk 0:02:11.1]} 16... Bxe2 {[%clk 0:02:02.4]} 17.
Qxe2 {[%clk 0:02:11]} 17... Be7 {[%clk 0:01:52.6]} 18. Qb5+ {[%clk 0:02:08.4]}
18... Nfd7 {[%clk 0:01:30.4]} 19. Nc6 {[%clk 0:02:03.4]} 19... Qb6 {[%clk
0:01:29.9]} 20. Nxe7 {[%clk 0:02:02.5]} 20... Kxe7 {[%clk 0:01:30.8]} 21. Qe2
{[%clk 0:01:56.3]} 21... Rhd8 {[%clk 0:01:24.4]} 22. e4 {[%clk 0:01:56.2]} 22...
e5 {[%clk 0:01:12]} 23. Be3 {[%clk 0:01:53.9]} 23... Qg6 {[%clk 0:01:02.7]} 24.
f3 {[%clk 0:01:52.6]} 24... Ne6 {[%clk 0:00:58.8]} 25. Nb3 {[%clk 0:01:47.5]}
25... Nf4 {[%clk 0:00:58.7]} 26. Bxf4 {[%clk 0:01:46.1]} 26... exf4 {[%clk
0:00:58.4]} 27. Kh1 {[%clk 0:01:44.2]} 27... Ne5 {[%clk 0:00:57.9]} 28. Nxa5
{[%clk 0:01:40.3]} 28... Rd3 {[%clk 0:00:41.2]} 29. Rac1 {[%clk 0:01:35.2]}
29... Rcd8 {[%clk 0:00:41.1]} 30. Rcd1 {[%clk 0:01:18.4]} 30... Qb6 {[%clk
0:00:27.9]} 31. Rxd3 {[%clk 0:01:15]} 31... Rxd3 {[%clk 0:00:23.1]} 32. Nc4
{[%clk 0:01:14]} 32... Qd4 {[%clk 0:00:16.3]} 33. Nxe5 {[%clk 0:01:13]} 33...
Qxe5 {[%clk 0:00:15.1]} 34. Qxd3 {[%clk 0:01:11.9]} 1-0

[Event "*** Titled Tuesday Blitz"]
[Site "Chess.com"]
[Date "2020.04.14"]
[Round "1"]
[White "CHESSMASTER759"]
[Black "gliglu"]
[Result "1-0"]
[WhiteElo "2739"]
[BlackElo "2384"]
[TimeControl "180+1"]
[EndTime "10:06:13 PDT"]
[Termination "CHESSMASTER759 won by resignation"]

1. e4 {[%clk 0:03:00.9]} 1... e6 {[%clk 0:03:00.9]} 2. d4 {[%clk 0:03:00.2]}
2... d5 {[%clk 0:03:00.9]} 3. Nd2 {[%clk 0:02:59.8]} 3... Nf6 {[%clk 0:03:00.1]}
4. e5 {[%clk 0:02:57.1]} 4... Nfd7 {[%clk 0:02:59.2]} 5. Bd3 {[%clk 0:02:57.4]}
5... c5 {[%clk 0:02:58.6]} 6. c3 {[%clk 0:02:57.3]} 6... b6 {[%clk 0:02:58.6]}
7. Ne2 {[%clk 0:02:54.1]} 7... Ba6 {[%clk 0:02:58]} 8. Bxa6 {[%clk 0:02:51.6]}
8... Nxa6 {[%clk 0:02:57.8]} 9. O-O {[%clk 0:02:37.7]} 9... Nc7 {[%clk
0:02:54.1]} 10. f4 {[%clk 0:02:37.7]} 10... f5 {[%clk 0:02:48.3]} 11. h3 {[%clk
0:02:34.5]} 11... Be7 {[%clk 0:02:44.2]} 12. Nf3 {[%clk 0:02:34.2]} 12... O-O
{[%clk 0:02:41.6]} 13. g4 {[%clk 0:02:31.5]} 13... b5 {[%clk 0:02:30.3]} 14.
dxc5 {[%clk 0:02:26.6]} 14... Nxc5 {[%clk 0:02:24]} 15. Nfd4 {[%clk 0:02:25.6]}
15... Qd7 {[%clk 0:02:02.1]} 16. Be3 {[%clk 0:02:21.1]} 16... Ne4 {[%clk
0:02:00.7]} 17. gxf5 {[%clk 0:02:17.4]} 17... exf5 {[%clk 0:02:00.3]} 18. Kh2
{[%clk 0:02:16.6]} 18... g6 {[%clk 0:01:57.3]} 19. Rg1 {[%clk 0:02:13.2]} 19...
Kh8 {[%clk 0:01:56.3]} 20. a4 {[%clk 0:02:03.5]} 20... b4 {[%clk 0:01:53.9]} 21.
cxb4 {[%clk 0:02:00.4]} 21... Bxb4 {[%clk 0:01:52.3]} 22. Rc1 {[%clk 0:02:00.8]}
22... Ne6 {[%clk 0:01:46.5]} 23. Nxe6 {[%clk 0:01:57]} 23... Qxe6 {[%clk
0:01:45.8]} 24. Nd4 {[%clk 0:01:57.9]} 24... Qe8 {[%clk 0:01:42.8]} 25. Nb5
{[%clk 0:01:55.8]} 25... Qe7 {[%clk 0:01:29.6]} 26. Rc7 {[%clk 0:01:52.3]} 26...
Qh4 {[%clk 0:01:28.8]} 27. Qd4 {[%clk 0:01:47.7]} 27... a5 {[%clk 0:01:17.3]}
28. e6+ {[%clk 0:01:40.4]} 28... Nf6 {[%clk 0:01:10]} 29. Bf2 {[%clk 0:01:22.9]}
29... Qh6 {[%clk 0:00:48.5]} 30. e7 {[%clk 0:01:20.9]} 30... Bxe7 {[%clk
0:00:47.7]} 31. Rxe7 {[%clk 0:01:18.5]} 31... Kg8 {[%clk 0:00:46.2]} 32. Qe5
{[%clk 0:01:11]} 32... Ra6 {[%clk 0:00:43.5]} 33. Nd6 {[%clk 0:01:08.2]} 33...
Ng4+ {[%clk 0:00:19.2]} 34. Rxg4 {[%clk 0:01:05.7]} 34... fxg4 {[%clk
0:00:19.2]} 35. Qxd5+ {[%clk 0:01:04]} 35... Kh8 {[%clk 0:00:20.1]} 36. Bd4+
{[%clk 0:01:02.7]} 1-0

[Event "*** Titled Tuesday Blitz"]
[Site "Chess.com"]
[Date "2020.04.14"]
[Round "1"]
[White "politeplayer"]
[Black "albi1999"]
[Result "0-1"]
[WhiteElo "2193"]
[BlackElo "2578"]
[TimeControl "180+1"]
[EndTime "10:06:13 PDT"]
[Termination "albi1999 won by resignation"]

1. e4 {[%clk 0:03:00.7]} 1... c6 {[%clk 0:02:58.9]} 2. Nf3 {[%clk 0:03:01.1]}
2... d5 {[%clk 0:02:59.8]} 3. exd5 {[%clk 0:03:01.3]} 3... cxd5 {[%clk
0:02:59.6]} 4. d4 {[%clk 0:03:01.9]} 4... Nc6 {[%clk 0:02:57.5]} 5. c4 {[%clk
0:02:59.2]} 5... Nf6 {[%clk 0:02:54.7]} 6. Nc3 {[%clk 0:02:59.1]} 6... Bg4
{[%clk 0:02:54.7]} 7. Be3 {[%clk 0:02:56.4]} 7... e6 {[%clk 0:02:51.9]} 8. Be2
{[%clk 0:02:56.1]} 8... Rc8 {[%clk 0:02:46.9]} 9. c5 {[%clk 0:02:53.5]} 9... Be7
{[%clk 0:02:40.9]} 10. h3 {[%clk 0:02:50]} 10... Bh5 {[%clk 0:02:39.7]} 11. O-O
{[%clk 0:02:46]} 11... O-O {[%clk 0:02:38.9]} 12. b4 {[%clk 0:02:42.9]} 12...
Ne4 {[%clk 0:02:30.6]} 13. Qb3 {[%clk 0:02:33.1]} 13... Bf6 {[%clk 0:02:05.3]}
14. Rad1 {[%clk 0:02:31]} 14... b6 {[%clk 0:01:55]} 15. Ba6 {[%clk 0:02:23.7]}
15... Rc7 {[%clk 0:01:41.2]} 16. Bf4 {[%clk 0:02:23.6]} 16... Bxf3 {[%clk
0:01:27.1]} 17. gxf3 {[%clk 0:02:07.7]} 17... Ng5 {[%clk 0:01:26.7]} 18. Bxg5
{[%clk 0:01:42.9]} 18... Bxg5 {[%clk 0:01:25.6]} 19. Ne2 {[%clk 0:01:42.4]}
19... Qf6 {[%clk 0:01:19.9]} 20. cxb6 {[%clk 0:01:18.7]} 20... axb6 {[%clk
0:01:17.9]} 21. Bb5 {[%clk 0:00:51.3]} 21... Ne7 {[%clk 0:01:16.3]} 22. Ng3
{[%clk 0:00:45.4]} 22... Ng6 {[%clk 0:01:13.1]} 23. Rfe1 {[%clk 0:00:26.5]}
23... Rfc8 {[%clk 0:01:05.5]} 24. Bf1 {[%clk 0:00:22.1]} 24... Rc3 {[%clk
0:01:01.6]} 25. Qa4 {[%clk 0:00:17.8]} 25... Nh4 {[%clk 0:01:00.9]} 26. f4
{[%clk 0:00:11.3]} 26... Bxf4 {[%clk 0:00:59.5]} 27. Be2 {[%clk 0:00:10]} 27...
Bxg3 {[%clk 0:00:59.1]} 0-1

[Event "*** Titled Tuesday Blitz"]
[Site "Chess.com"]
[Date "2020.04.14"]
[Round "1"]
[White "Stewie_89"]
[Black "kekic76"]
[Result "1-0"]
[WhiteElo "2637"]
[BlackElo "2288"]
[TimeControl "180+1"]
[EndTime "10:06:15 PDT"]
[Termination "Stewie_89 won by resignation"]

1. e4 {[%clk 0:02:59.6]} 1... e6 {[%clk 0:02:55.1]} 2. d4 {[%clk 0:02:59]} 2...
d5 {[%clk 0:02:55]} 3. Nd2 {[%clk 0:02:59.1]} 3... dxe4 {[%clk 0:02:51.1]} 4.
Nxe4 {[%clk 0:02:56.7]} 4... Nd7 {[%clk 0:02:51.5]} 5. Nf3 {[%clk 0:02:56.2]}
5... Ngf6 {[%clk 0:02:51.5]} 6. Nxf6+ {[%clk 0:02:56.5]} 6... Nxf6 {[%clk
0:02:51]} 7. Be3 {[%clk 0:02:57.1]} 7... Be7 {[%clk 0:02:50.7]} 8. Bd3 {[%clk
0:02:51.1]} 8... O-O {[%clk 0:02:50.3]} 9. O-O {[%clk 0:02:47.8]} 9... b6 {[%clk
0:02:50.5]} 10. Ne5 {[%clk 0:02:38.8]} 10... Bb7 {[%clk 0:02:50]} 11. Be2 {[%clk
0:02:32.1]} 11... Rc8 {[%clk 0:02:48.2]} 12. Bf3 {[%clk 0:02:30.9]} 12... Bxf3
{[%clk 0:02:47.6]} 13. Qxf3 {[%clk 0:02:31.8]} 13... c5 {[%clk 0:02:42.9]} 14.
Nc6 {[%clk 0:02:28.6]} 14... Qd7 {[%clk 0:02:42.2]} 15. Nxe7+ {[%clk 0:02:28.6]}
15... Qxe7 {[%clk 0:02:42.5]} 16. dxc5 {[%clk 0:02:28.7]} 16... bxc5 {[%clk
0:02:42.8]} 17. c4 {[%clk 0:02:27.3]} 17... Rfd8 {[%clk 0:02:38.4]} 18. Rfd1
{[%clk 0:02:26.3]} 18... h6 {[%clk 0:02:24.1]} 19. h3 {[%clk 0:02:25.4]} 19...
Ne8 {[%clk 0:01:59.2]} 20. Rxd8 {[%clk 0:02:16.5]} 20... Rxd8 {[%clk 0:01:58.5]}
21. Rd1 {[%clk 0:02:01.3]} 21... Rxd1+ {[%clk 0:01:42.3]} 22. Qxd1 {[%clk
0:02:00.3]} 22... Qd6 {[%clk 0:01:42.2]} 23. Qa4 {[%clk 0:01:51.3]} 23... Nf6
{[%clk 0:01:32.9]} 24. Qxa7 {[%clk 0:01:49.7]} 24... Qd3 {[%clk 0:01:13.9]} 25.
Qxc5 {[%clk 0:01:29.6]} 25... Qb1+ {[%clk 0:01:12.3]} 26. Kh2 {[%clk 0:01:29.6]}
26... Qxa2 {[%clk 0:01:12.6]} 27. b4 {[%clk 0:01:24.2]} 27... Ne4 {[%clk
0:00:47.9]} 28. Qd4 {[%clk 0:01:22.1]} 28... f5 {[%clk 0:00:46.9]} 29. c5 {[%clk
0:01:19.3]} 29... Qd5 {[%clk 0:00:38.1]} 30. Qxd5 {[%clk 0:01:14.6]} 30... exd5
{[%clk 0:00:39]} 31. c6 {[%clk 0:01:14.6]} 31... Kf7 {[%clk 0:00:35.9]} 32. c7
{[%clk 0:01:01.6]} 32... Nd6 {[%clk 0:00:35.1]} 33. Bc5 {[%clk 0:01:01.9]} 33...
Nc8 {[%clk 0:00:30.3]} 34. b5 {[%clk 0:01:02.1]} 34... Ke6 {[%clk 0:00:26.7]}
35. b6 {[%clk 0:01:01.4]} 35... Kd7 {[%clk 0:00:26.8]} 36. b7 {[%clk 0:01:01.6]}
36... Kxc7 {[%clk 0:00:27]} 37. bxc8=Q+ {[%clk 0:01:01.8]} 37... Kxc8 {[%clk
0:00:27.7]} 38. Bf8 {[%clk 0:01:00.9]} 1-0

[Event "*** Titled Tuesday Blitz"]
[Site "Chess.com"]
[Date "2020.04.14"]
[Round "1"]
[White "anon219"]
[Black "InitiatingASC"]
[Result "1-0"]
[WhiteElo "2835"]
[BlackElo "2438"]
[TimeControl "180+1"]
[EndTime "10:06:18 PDT"]
[Termination "anon219 won by resignation"]

1. e4 {[%clk 0:03:00.9]} 1... c5 {[%clk 0:02:59.4]} 2. Nf3 {[%clk 0:03:01.2]}
2... Nc6 {[%clk 0:02:59.6]} 3. Bb5 {[%clk 0:03:01.4]} 3... g6 {[%clk 0:02:58.2]}
4. O-O {[%clk 0:03:01.1]} 4... Bg7 {[%clk 0:02:58.2]} 5. Nc3 {[%clk 0:03:01.7]}
5... Nf6 {[%clk 0:02:57.1]} 6. e5 {[%clk 0:03:00.7]} 6... Ng4 {[%clk 0:02:57]}
7. Bxc6 {[%clk 0:03:01.4]} 7... dxc6 {[%clk 0:02:57]} 8. Re1 {[%clk 0:03:02.1]}
8... Nh6 {[%clk 0:02:56.4]} 9. Ne4 {[%clk 0:02:57.5]} 9... b6 {[%clk 0:02:55.9]}
10. Nf6+ {[%clk 0:02:57.7]} 10... Kf8 {[%clk 0:02:49.2]} 11. Ne4 {[%clk
0:02:57.8]} 11... Nf5 {[%clk 0:02:42.7]} 12. d3 {[%clk 0:02:56.1]} 12... Nd4
{[%clk 0:02:39.6]} 13. Nxd4 {[%clk 0:02:46.9]} 13... cxd4 {[%clk 0:02:33.6]} 14.
Qf3 {[%clk 0:02:46.2]} 14... h6 {[%clk 0:02:21.9]} 15. Bf4 {[%clk 0:02:40.9]}
15... Qd5 {[%clk 0:02:16.5]} 16. h4 {[%clk 0:02:19.7]} 16... Be6 {[%clk
0:02:07.3]} 17. Qg3 {[%clk 0:02:14.1]} 17... Ke8 {[%clk 0:01:54.1]} 18. c4
{[%clk 0:02:12]} 18... dxc3 {[%clk 0:01:45]} 19. bxc3 {[%clk 0:02:12.9]} 19...
Kd7 {[%clk 0:01:40.7]} 20. a4 {[%clk 0:02:09.5]} 20... Rhd8 {[%clk 0:01:39.5]}
21. Qe3 {[%clk 0:02:00.2]} 21... Ke8 {[%clk 0:01:16]} 22. Bxh6 {[%clk
0:01:58.6]} 22... Bxe5 {[%clk 0:01:16]} 23. d4 {[%clk 0:01:57.1]} 23... Bh8
{[%clk 0:01:14.2]} 24. Ng5 {[%clk 0:01:56.8]} 24... Rd6 {[%clk 0:01:13.1]} 25.
Rac1 {[%clk 0:01:51.6]} 25... Bf6 {[%clk 0:01:10.9]} 26. Ne4 {[%clk 0:01:42.2]}
26... Rd7 {[%clk 0:01:05]} 27. Bg5 {[%clk 0:01:40.4]} 27... Qf5 {[%clk
0:00:59.6]} 28. Re2 {[%clk 0:01:19.7]} 28... Kf8 {[%clk 0:00:51.3]} 29. Bxf6
{[%clk 0:01:15.5]} 29... exf6 {[%clk 0:00:51]} 30. Qh6+ {[%clk 0:01:15.5]} 30...
Ke7 {[%clk 0:00:43.7]} 31. Rce1 {[%clk 0:01:15.1]} 31... Rg8 {[%clk 0:00:34.1]}
32. Ng3 {[%clk 0:01:11.3]} 32... Qg4 {[%clk 0:00:30.8]} 33. Qh7 {[%clk
0:01:06.7]} 33... Rf8 {[%clk 0:00:29.7]} 34. Rxe6+ {[%clk 0:01:06]} 34... Qxe6
{[%clk 0:00:28.9]} 35. Rxe6+ {[%clk 0:01:06.4]} 35... Kxe6 {[%clk 0:00:29.3]}
36. Qg7 {[%clk 0:01:05.3]} 36... Ke7 {[%clk 0:00:28.9]} 37. Ne4 {[%clk
0:01:04.6]} 37... f5 {[%clk 0:00:27.8]} 38. Qf6+ {[%clk 0:01:04.6]} 38... Ke8
{[%clk 0:00:26.6]} 39. Nd6+ {[%clk 0:01:05.5]} 1-0

[Event "*** Titled Tuesday Blitz"]
[Site "Chess.com"]
[Date "2020.04.14"]
[Round "1"]
[White "FearNoEvil12"]
[Black "pedromartinez91"]
[Result "0-1"]
[WhiteElo "2051"]
[BlackElo "2527"]
[TimeControl "180+1"]
[EndTime "10:06:18 PDT"]
[Termination "pedromartinez91 won by resignation"]

1. e4 {[%clk 0:03:00.7]} 1... c5 {[%clk 0:02:55.9]} 2. Nc3 {[%clk 0:02:59]} 2...
g6 {[%clk 0:02:55.6]} 3. f4 {[%clk 0:02:58.7]} 3... Bg7 {[%clk 0:02:55.5]} 4.
Nf3 {[%clk 0:02:58.5]} 4... Nc6 {[%clk 0:02:55.3]} 5. Bc4 {[%clk 0:02:58.7]}
5... e6 {[%clk 0:02:51.9]} 6. f5 {[%clk 0:02:59]} 6... Nge7 {[%clk 0:02:48.6]}
7. fxg6 {[%clk 0:02:57.9]} 7... fxg6 {[%clk 0:02:42.6]} 8. d3 {[%clk 0:02:58.3]}
8... O-O {[%clk 0:02:41.3]} 9. O-O {[%clk 0:02:55.7]} 9... d5 {[%clk 0:02:40.3]}
10. Bb3 {[%clk 0:02:54.6]} 10... c4 {[%clk 0:02:35.5]} 11. dxc4 {[%clk
0:02:50.4]} 11... d4 {[%clk 0:02:35.7]} 12. Ne2 {[%clk 0:02:46.6]} 12... Na5
{[%clk 0:02:33.3]} 13. Qe1 {[%clk 0:02:41.6]} 13... Nec6 {[%clk 0:02:25.6]} 14.
Bg5 {[%clk 0:02:38.9]} 14... Qb6 {[%clk 0:02:21.2]} 15. Kh1 {[%clk 0:02:32.4]}
15... d3 {[%clk 0:02:09.3]} 16. cxd3 {[%clk 0:02:29.2]} 16... Nxb3 {[%clk
0:02:09.3]} 17. axb3 {[%clk 0:02:27.9]} 17... Qxb3 {[%clk 0:02:09.7]} 18. Rd1
{[%clk 0:02:21.4]} 18... Qxb2 {[%clk 0:01:49.7]} 19. Nf4 {[%clk 0:02:20.1]}
19... Bd7 {[%clk 0:01:36.3]} 20. Qh4 {[%clk 0:02:16.4]} 20... Ne5 {[%clk
0:01:25.7]} 21. Nxe5 {[%clk 0:02:01.2]} 21... Qxe5 {[%clk 0:01:26.6]} 22. d4
{[%clk 0:01:30.1]} 22... Qxe4 {[%clk 0:01:11.9]} 23. Rfe1 {[%clk 0:01:29.9]}
23... Qf5 {[%clk 0:01:05.7]} 24. g4 {[%clk 0:01:20.8]} 24... Qc2 {[%clk
0:00:53.9]} 25. d5 {[%clk 0:01:18.1]} 25... exd5 {[%clk 0:00:41.9]} 26. cxd5
{[%clk 0:01:16.1]} 26... Rae8 {[%clk 0:00:37.3]} 27. Be7 {[%clk 0:01:01.9]}
27... Rxf4 {[%clk 0:00:32.3]} 28. Qg3 {[%clk 0:00:58.4]} 28... Re4 {[%clk
0:00:24.9]} 29. d6 {[%clk 0:00:50]} 29... Rxe1+ {[%clk 0:00:22.4]} 30. Rxe1
{[%clk 0:00:47.9]} 30... Bc6+ {[%clk 0:00:22.1]} 31. Kg1 {[%clk 0:00:45.4]}
31... Bd4+ {[%clk 0:00:22]} 32. Kf1 {[%clk 0:00:45.3]} 32... Bb5+ {[%clk
0:00:21.7]} 0-1

[Event "*** Titled Tuesday Blitz"]
[Site "Chess.com"]
[Date "2020.04.14"]
[Round "1"]
[White "Fy_Rakotomaharo"]
[Black "YaWaleriy"]
[Result "1-0"]
[WhiteElo "2579"]
[BlackElo "2198"]
[TimeControl "180+1"]
[EndTime "10:06:19 PDT"]
[Termination "Fy_Rakotomaharo won by resignation"]

1. e4 {[%clk 0:02:58.8]} 1... e6 {[%clk 0:02:59.4]} 2. d4 {[%clk 0:02:58.5]}
2... d5 {[%clk 0:02:59.2]} 3. Nc3 {[%clk 0:02:58.6]} 3... Nf6 {[%clk 0:02:58.7]}
4. Bg5 {[%clk 0:02:58]} 4... dxe4 {[%clk 0:02:57.7]} 5. Nxe4 {[%clk 0:02:58.9]}
5... Be7 {[%clk 0:02:57.8]} 6. Bxf6 {[%clk 0:02:58.8]} 6... Bxf6 {[%clk
0:02:57.7]} 7. Nf3 {[%clk 0:02:54.9]} 7... O-O {[%clk 0:02:57.8]} 8. c3 {[%clk
0:02:51.9]} 8... Nd7 {[%clk 0:02:48.5]} 9. Bd3 {[%clk 0:02:51.6]} 9... e5 {[%clk
0:02:48.3]} 10. O-O {[%clk 0:02:47.5]} 10... exd4 {[%clk 0:02:47.4]} 11. cxd4
{[%clk 0:02:48.4]} 11... c6 {[%clk 0:02:42.5]} 12. Re1 {[%clk 0:02:39.4]} 12...
Nb6 {[%clk 0:02:41]} 13. Ne5 {[%clk 0:02:33.9]} 13... Be6 {[%clk 0:02:37.6]} 14.
Nc5 {[%clk 0:02:25]} 14... Bc8 {[%clk 0:02:30.9]} 15. a4 {[%clk 0:01:52.1]}
15... a5 {[%clk 0:02:29.4]} 16. Qc2 {[%clk 0:01:46.1]} 16... g6 {[%clk
0:02:28.6]} 17. Rad1 {[%clk 0:01:44.6]} 17... Bg7 {[%clk 0:02:23.4]} 18. Qb3
{[%clk 0:01:42.1]} 18... Qc7 {[%clk 0:02:13.7]} 19. h4 {[%clk 0:01:38.4]} 19...
Nd5 {[%clk 0:02:10.4]} 20. Bc4 {[%clk 0:01:32.6]} 20... Rd8 {[%clk 0:01:48.1]}
21. h5 {[%clk 0:01:28.2]} 21... b6 {[%clk 0:01:44.1]} 22. Ne4 {[%clk 0:01:03.3]}
22... Bf5 {[%clk 0:01:41.8]} 23. Ng5 {[%clk 0:00:36.4]} 23... f6 {[%clk
0:01:33.5]} 24. hxg6 {[%clk 0:00:36.3]} 24... hxg6 {[%clk 0:01:29.3]} 25. g4
{[%clk 0:00:35.8]} 25... fxe5 {[%clk 0:01:24.2]} 26. gxf5 {[%clk 0:00:35.4]}
26... Qe7 {[%clk 0:01:22.1]} 27. Ne6 {[%clk 0:00:32.3]} 27... gxf5 {[%clk
0:01:21.2]} 28. Nxd8 {[%clk 0:00:32]} 28... Rxd8 {[%clk 0:01:19.3]} 29. dxe5
{[%clk 0:00:32.2]} 29... Qc5 {[%clk 0:01:17.1]} 30. Bxd5+ {[%clk 0:00:27.5]}
30... cxd5 {[%clk 0:01:16.5]} 31. e6 {[%clk 0:00:22.4]} 31... Bf6 {[%clk
0:01:11.5]} 32. Kf1 {[%clk 0:00:19.9]} 32... Kf8 {[%clk 0:01:11.1]} 33. Qg3
{[%clk 0:00:17.7]} 33... Ke7 {[%clk 0:01:09.6]} 34. Rc1 {[%clk 0:00:17.4]} 34...
Qd6 {[%clk 0:01:08.6]} 35. Rc7+ {[%clk 0:00:17.2]} 1-0

[Event "*** Titled Tuesday Blitz"]
[Site "Chess.com"]
[Date "2020.04.14"]
[Round "1"]
[White "annamaja"]
[Black "Szczor"]
[Result "0-1"]
[WhiteElo "2181"]
[BlackElo "2568"]
[TimeControl "180+1"]
[EndTime "10:06:19 PDT"]
[Termination "Szczor won by resignation"]

1. e4 {[%clk 0:03:00.9]} 1... c5 {[%clk 0:02:57]} 2. Nf3 {[%clk 0:03:00.8]} 2...
d6 {[%clk 0:02:56.6]} 3. d4 {[%clk 0:03:01.2]} 3... cxd4 {[%clk 0:02:57.5]} 4.
Nxd4 {[%clk 0:03:01.8]} 4... Nf6 {[%clk 0:02:58]} 5. Nc3 {[%clk 0:03:02.2]} 5...
a6 {[%clk 0:02:58.6]} 6. g3 {[%clk 0:03:02.4]} 6... e6 {[%clk 0:02:57.2]} 7. Bg2
{[%clk 0:03:02.3]} 7... Be7 {[%clk 0:02:56.5]} 8. O-O {[%clk 0:03:02.5]} 8...
Nbd7 {[%clk 0:02:52.5]} 9. a4 {[%clk 0:03:00.8]} 9... Qc7 {[%clk 0:02:47.8]} 10.
Re1 {[%clk 0:02:52]} 10... Rb8 {[%clk 0:02:45.8]} 11. a5 {[%clk 0:02:47.6]}
11... b6 {[%clk 0:02:42.4]} 12. axb6 {[%clk 0:02:39.5]} 12... Nxb6 {[%clk
0:02:41.9]} 13. Na4 {[%clk 0:02:34.3]} 13... Nxa4 {[%clk 0:02:25]} 14. Rxa4
{[%clk 0:02:35.2]} 14... Bb7 {[%clk 0:02:25.1]} 15. b3 {[%clk 0:02:16.4]} 15...
O-O {[%clk 0:02:24.1]} 16. Bb2 {[%clk 0:02:14.8]} 16... Rfc8 {[%clk 0:02:10.6]}
17. c4 {[%clk 0:02:13.8]} 17... Nd7 {[%clk 0:02:09]} 18. f4 {[%clk 0:01:45]}
18... Bf6 {[%clk 0:02:04.6]} 19. Kh1 {[%clk 0:01:30.9]} 19... Nc5 {[%clk
0:02:01.7]} 20. Ra1 {[%clk 0:01:16.1]} 20... Nxb3 {[%clk 0:01:43.2]} 21. e5
{[%clk 0:00:16.7]} 21... Bxg2+ {[%clk 0:01:40]} 22. Kxg2 {[%clk 0:00:17.6]}
22... Nxa1 {[%clk 0:01:06.6]} 23. Bxa1 {[%clk 0:00:16.5]} 23... dxe5 {[%clk
0:01:06.4]} 24. fxe5 {[%clk 0:00:16.3]} 24... Bxe5 {[%clk 0:01:04.7]} 25. Nxe6
{[%clk 0:00:12.4]} 25... Qc6+ {[%clk 0:01:04.4]} 26. Kh3 {[%clk 0:00:11]} 26...
Qxe6+ {[%clk 0:01:02.8]} 27. Kg2 {[%clk 0:00:11.4]} 27... Qc6+ {[%clk 0:00:59]}
28. Kh3 {[%clk 0:00:09.1]} 28... Bxa1 {[%clk 0:00:58.7]} 29. Qxa1 {[%clk
0:00:10]} 29... Re8 {[%clk 0:00:58.2]} 30. Rxe8+ {[%clk 0:00:08.8]} 30... Rxe8
{[%clk 0:00:57.8]} 31. Qd4 {[%clk 0:00:09.7]} 31... Qe6+ {[%clk 0:00:56.3]} 0-1

[Event "*** Titled Tuesday Blitz"]
[Site "Chess.com"]
[Date "2020.04.14"]
[Round "1"]
[White "MasterKroket"]
[Black "pheonixking2000"]
[Result "0-1"]
[WhiteElo "2432"]
[BlackElo "2818"]
[TimeControl "180+1"]
[EndTime "10:06:21 PDT"]
[Termination "pheonixking2000 won by resignation"]

1. d4 {[%clk 0:03:00.9]} 1... d5 {[%clk 0:02:58.7]} 2. c4 {[%clk 0:02:57.4]}
2... e6 {[%clk 0:02:58.8]} 3. Nf3 {[%clk 0:02:56.7]} 3... Nf6 {[%clk 0:02:59.1]}
4. Nc3 {[%clk 0:02:55.3]} 4... c6 {[%clk 0:02:58.2]} 5. Bg5 {[%clk 0:02:47.6]}
5... h6 {[%clk 0:02:57.5]} 6. Bxf6 {[%clk 0:02:39.9]} 6... Qxf6 {[%clk
0:02:56.3]} 7. e3 {[%clk 0:02:38.9]} 7... Nd7 {[%clk 0:02:54.6]} 8. Rc1 {[%clk
0:02:38.1]} 8... g6 {[%clk 0:02:49]} 9. Bd3 {[%clk 0:02:36.8]} 9... Bg7 {[%clk
0:02:48]} 10. e4 {[%clk 0:02:34.8]} 10... dxc4 {[%clk 0:02:47.1]} 11. Bxc4
{[%clk 0:02:33.5]} 11... e5 {[%clk 0:02:46.3]} 12. d5 {[%clk 0:02:30.5]} 12...
Nb6 {[%clk 0:02:46.2]} 13. dxc6 {[%clk 0:02:03]} 13... bxc6 {[%clk 0:02:47.1]}
14. Na4 {[%clk 0:01:39.8]} 14... O-O {[%clk 0:02:46.1]} 15. Nxb6 {[%clk
0:01:32.9]} 15... axb6 {[%clk 0:02:45.5]} 16. O-O {[%clk 0:01:24.9]} 16... Qe7
{[%clk 0:02:33.3]} 17. Qb3 {[%clk 0:01:19.8]} 17... b5 {[%clk 0:02:31.1]} 18.
Be2 {[%clk 0:01:14.7]} 18... Be6 {[%clk 0:02:31.3]} 19. Qc2 {[%clk 0:01:00.8]}
19... Rfc8 {[%clk 0:02:09.6]} 20. a3 {[%clk 0:01:00.9]} 20... Rab8 {[%clk
0:02:02.1]} 21. Qc5 {[%clk 0:01:00.6]} 21... Qxc5 {[%clk 0:01:46.6]} 22. Rxc5
{[%clk 0:01:01.5]} 22... f6 {[%clk 0:01:47]} 23. Rfc1 {[%clk 0:00:59.2]} 23...
Bd7 {[%clk 0:01:47]} 24. Ne1 {[%clk 0:00:51.1]} 24... Bf8 {[%clk 0:01:47]} 25.
R5c2 {[%clk 0:00:51.6]} 25... c5 {[%clk 0:01:47]} 26. Rd1 {[%clk 0:00:44.2]}
26... Be6 {[%clk 0:01:46.1]} 27. Rcd2 {[%clk 0:00:40.3]} 27... Bb3 {[%clk
0:01:44.5]} 28. Rc1 {[%clk 0:00:40.4]} 28... c4 {[%clk 0:01:43.3]} 29. Nc2
{[%clk 0:00:38.3]} 29... c3 {[%clk 0:01:42.1]} 30. bxc3 {[%clk 0:00:34.2]} 30...
Rxc3 {[%clk 0:01:42.9]} 31. Bd1 {[%clk 0:00:30.1]} 31... Rbc8 {[%clk 0:01:36.8]}
32. h3 {[%clk 0:00:18.8]} 32... h5 {[%clk 0:01:27.7]} 33. Kh2 {[%clk 0:00:18.5]}
33... Bh6 {[%clk 0:01:26.7]} 34. Ne3 {[%clk 0:00:12.6]} 34... Rxc1 {[%clk
0:01:18.3]} 35. Bxb3+ {[%clk 0:00:12.9]} 35... Kh8 {[%clk 0:01:18.8]} 36. Be6
{[%clk 0:00:10.1]} 36... Bf4+ {[%clk 0:01:12.6]} 37. g3 {[%clk 0:00:09.8]} 37...
Bxe3 {[%clk 0:01:13.3]} 38. fxe3 {[%clk 0:00:09]} 38... R8c2 {[%clk 0:01:12.8]}
0-1